[Event "Early-Titled-Tuesday-Blitz-March-19-2024"]
[Site "Chess.com"]
[Date "2024.03.19"]
[Round "2"]
[White "betta2004"]
[Black "Gryffindorac8"]
[Result "0-1"]
[WhiteElo "2559"]
[BlackElo "2372"]
[TimeControl "180+1"]
[EndTime "8:17:45 PDT"]
[Termination "Gryffindorac8 won by checkmate"]

1. d4 {[%clk 0:03:00.9]} 1... Nf6 {[%clk 0:02:59.9]} 2. Nc3 {[%clk 0:03:01.8]}
2... d5 {[%clk 0:02:59.4]} 3. Bf4 {[%clk 0:03:02.3]} 3... a6 {[%clk 0:02:58.7]}
4. e3 {[%clk 0:03:02.4]} 4... b5 {[%clk 0:02:58.5]} 5. Nf3 {[%clk 0:02:56.5]}
5... e6 {[%clk 0:02:57.9]} 6. Bd3 {[%clk 0:02:54.3]} 6... Bb7 {[%clk 0:02:57.6]}
7. Ne5 {[%clk 0:02:47.8]} 7... c5 {[%clk 0:02:51.6]} 8. dxc5 {[%clk 0:02:36.2]}
8... Bxc5 {[%clk 0:02:47.5]} 9. O-O {[%clk 0:02:37.1]} 9... O-O {[%clk
0:02:38.7]} 10. a3 {[%clk 0:02:26.3]} 10... Nbd7 {[%clk 0:02:37]} 11. Ne2 {[%clk
0:02:08.6]} 11... Nxe5 {[%clk 0:02:17.8]} 12. Bxe5 {[%clk 0:02:09.5]} 12... Bd6
{[%clk 0:02:17.9]} 13. Bxd6 {[%clk 0:01:51.9]} 13... Qxd6 {[%clk 0:02:18.8]} 14.
b4 {[%clk 0:01:34.1]} 14... e5 {[%clk 0:02:01.6]} 15. c3 {[%clk 0:01:25.1]}
15... Qc6 {[%clk 0:01:14.7]} 16. f3 {[%clk 0:00:54.8]} 16... Rfe8 {[%clk
0:00:45.3]} 17. Rc1 {[%clk 0:00:37.8]} 17... Rad8 {[%clk 0:00:43.9]} 18. Qb3
{[%clk 0:00:34.9]} 18... Qb6 {[%clk 0:00:40.3]} 19. Kf2 {[%clk 0:00:26.7]} 19...
e4 {[%clk 0:00:35.2]} 20. Bb1 {[%clk 0:00:17.7]} 20... exf3 {[%clk 0:00:32.3]}
21. Nd4 {[%clk 0:00:03.3]} 21... Ng4+ {[%clk 0:00:14.6]} 22. Kxf3 {[%clk
0:00:03]} 22... Rxe3+ {[%clk 0:00:11.2]} 23. Kxg4 {[%clk 0:00:02.7]} 23... Bc8+
{[%clk 0:00:11.4]} 24. Kg5 {[%clk 0:00:01.4]} 24... Qh6# {[%clk 0:00:09.1]} 0-1

[Event "Early-Titled-Tuesday-Blitz-March-19-2024"]
[Site "Chess.com"]
[Date "2024.03.19"]
[Round "2"]
[White "RamyresCoelho"]
[Black "RebelJohnny"]
[Result "0-1"]
[WhiteElo "2296"]
[BlackElo "2537"]
[TimeControl "180+1"]
[EndTime "8:17:45 PDT"]
[Termination "RebelJohnny won by checkmate"]

1. e4 {[%clk 0:03:00]} 1... d6 {[%clk 0:02:59.4]} 2. d4 {[%clk 0:02:59.5]} 2...
Nf6 {[%clk 0:02:59.1]} 3. Nc3 {[%clk 0:02:51.7]} 3... c6 {[%clk 0:02:58.8]} 4.
f3 {[%clk 0:02:51.6]} 4... e5 {[%clk 0:02:55.5]} 5. dxe5 {[%clk 0:02:50.5]} 5...
dxe5 {[%clk 0:02:56.4]} 6. Qxd8+ {[%clk 0:02:51]} 6... Kxd8 {[%clk 0:02:56.5]}
7. Bg5 {[%clk 0:02:51.9]} 7... Be6 {[%clk 0:02:55.6]} 8. O-O-O+ {[%clk
0:02:52.8]} 8... Kc7 {[%clk 0:02:56.1]} 9. f4 {[%clk 0:02:47.9]} 9... Bb4 {[%clk
0:02:25.6]} 10. fxe5 {[%clk 0:02:41.6]} 10... Ng4 {[%clk 0:02:20.6]} 11. Nh3
{[%clk 0:02:23.5]} 11... Bxc3 {[%clk 0:02:14.4]} 12. bxc3 {[%clk 0:02:24.4]}
12... Nd7 {[%clk 0:02:10.1]} 13. Be7 {[%clk 0:02:23]} 13... Ndxe5 {[%clk
0:02:04.2]} 14. Bd6+ {[%clk 0:02:22.9]} 14... Kb6 {[%clk 0:02:03.4]} 15. Be2
{[%clk 0:02:21.7]} 15... f6 {[%clk 0:01:42.1]} 16. Kd2 {[%clk 0:02:17.1]} 16...
Rad8 {[%clk 0:01:27]} 17. Ke1 {[%clk 0:02:09.1]} 17... a6 {[%clk 0:01:07.3]} 18.
Rb1+ {[%clk 0:02:06.1]} 18... Ka7 {[%clk 0:01:07.3]} 19. Bc5+ {[%clk 0:02:06.4]}
19... Ka8 {[%clk 0:01:06.7]} 20. Bb6 {[%clk 0:02:01.1]} 20... Rd7 {[%clk
0:01:03.1]} 21. Nf4 {[%clk 0:01:58.9]} 21... Bxa2 {[%clk 0:01:01.6]} 22. Ra1
{[%clk 0:01:56.9]} 22... Bc4 {[%clk 0:00:59.1]} 23. Nd3 {[%clk 0:01:43.9]} 23...
Bxd3 {[%clk 0:00:54.4]} 24. cxd3 {[%clk 0:01:42.2]} 24... Nxd3+ {[%clk
0:00:54.4]} 25. Kf1 {[%clk 0:01:35.9]} 25... Nde5 {[%clk 0:00:48.1]} 26. h3
{[%clk 0:01:33.6]} 26... Nh6 {[%clk 0:00:48.3]} 27. Kf2 {[%clk 0:01:29.7]} 27...
Rd2 {[%clk 0:00:38.7]} 28. Ke3 {[%clk 0:01:20.3]} 28... Rb2 {[%clk 0:00:35.9]}
29. Bd4 {[%clk 0:01:16.3]} 29... Rd8 {[%clk 0:00:34]} 30. Rhb1 {[%clk
0:01:08.2]} 30... Rxb1 {[%clk 0:00:34]} 31. Rxb1 {[%clk 0:01:09.1]} 31... Nhf7
{[%clk 0:00:34.2]} 32. g4 {[%clk 0:01:04.5]} 32... Ng5 {[%clk 0:00:28.4]} 33. h4
{[%clk 0:01:02.6]} 33... Ne6 {[%clk 0:00:28.9]} 34. Bb6 {[%clk 0:01:01.5]} 34...
Rd7 {[%clk 0:00:27.5]} 35. g5 {[%clk 0:01:00.3]} 35... fxg5 {[%clk 0:00:23.6]}
36. hxg5 {[%clk 0:01:01.2]} 36... Nxg5 {[%clk 0:00:24.1]} 37. Rf1 {[%clk
0:00:59.1]} 37... Rf7 {[%clk 0:00:18.6]} 38. Rd1 {[%clk 0:00:56.5]} 38... Nd7
{[%clk 0:00:18.3]} 39. Bg4 {[%clk 0:00:55.3]} 39... Nxb6 {[%clk 0:00:16.8]} 40.
Rd8+ {[%clk 0:00:54.9]} 40... Ka7 {[%clk 0:00:17.5]} 41. Bf5 {[%clk 0:00:53.6]}
41... g6 {[%clk 0:00:17.2]} 42. Bg4 {[%clk 0:00:53.5]} 42... Re7 {[%clk
0:00:17.8]} 43. Kd4 {[%clk 0:00:53.5]} 43... Rxe4+ {[%clk 0:00:17.8]} 44. Kc5
{[%clk 0:00:54.4]} 44... Rxg4 {[%clk 0:00:18.7]} 45. c4 {[%clk 0:00:52.4]} 45...
Rxc4+ {[%clk 0:00:19]} 46. Kd6 {[%clk 0:00:52.4]} 46... Rd4+ {[%clk 0:00:19.7]}
47. Kc7 {[%clk 0:00:51.3]} 47... Ne6# {[%clk 0:00:20]} 0-1

[Event "Early-Titled-Tuesday-Blitz-March-19-2024"]
[Site "Chess.com"]
[Date "2024.03.19"]
[Round "2"]
[White "BozeKat"]
[Black "ajeale2"]
[Result "0-1"]
[WhiteElo "2048"]
[BlackElo "2462"]
[TimeControl "180+1"]
[EndTime "8:17:45 PDT"]
[Termination "ajeale2 won by checkmate"]

1. d4 {[%clk 0:03:00.9]} 1... e6 {[%clk 0:02:58.7]} 2. e4 {[%clk 0:02:56.8]}
2... d5 {[%clk 0:02:57.7]} 3. Nd2 {[%clk 0:02:53.3]} 3... Nf6 {[%clk 0:02:57.3]}
4. exd5 {[%clk 0:02:40.8]} 4... exd5 {[%clk 0:02:56.3]} 5. Bd3 {[%clk 0:02:39]}
5... c5 {[%clk 0:02:51.7]} 6. Ngf3 {[%clk 0:02:32.6]} 6... c4 {[%clk 0:02:38.8]}
7. Be2 {[%clk 0:02:29.6]} 7... Bg4 {[%clk 0:02:35]} 8. O-O {[%clk 0:02:27.5]}
8... Bd6 {[%clk 0:02:32.6]} 9. Ne5 {[%clk 0:02:26.5]} 9... Bxe2 {[%clk 0:02:30]}
10. Qxe2 {[%clk 0:02:26.1]} 10... O-O {[%clk 0:02:30.6]} 11. c3 {[%clk
0:02:15.1]} 11... Nc6 {[%clk 0:02:09.1]} 12. f4 {[%clk 0:02:14.2]} 12... Ne7
{[%clk 0:02:02.4]} 13. a4 {[%clk 0:01:39.2]} 13... Rc8 {[%clk 0:01:55.1]} 14. g4
{[%clk 0:01:23.2]} 14... Re8 {[%clk 0:01:38.7]} 15. g5 {[%clk 0:01:20.1]} 15...
Nd7 {[%clk 0:01:32.5]} 16. Qg4 {[%clk 0:01:18.8]} 16... Nf8 {[%clk 0:01:09.3]}
17. Ndf3 {[%clk 0:01:01.9]} 17... Nc6 {[%clk 0:00:57.4]} 18. f5 {[%clk
0:00:29.5]} 18... Nxe5 {[%clk 0:00:54.3]} 19. Nxe5 {[%clk 0:00:25.2]} 19... Bxe5
{[%clk 0:00:53.6]} 20. dxe5 {[%clk 0:00:25.7]} 20... Rxe5 {[%clk 0:00:53.9]} 21.
f6 {[%clk 0:00:24.7]} 21... Re4 {[%clk 0:00:42.4]} 22. Qh3 {[%clk 0:00:14.5]}
22... Qd7 {[%clk 0:00:40.6]} 23. Rf5 {[%clk 0:00:09.3]} 23... g6 {[%clk
0:00:36.7]} 24. Qh6 {[%clk 0:00:08.7]} 24... Re1+ {[%clk 0:00:19.4]} 25. Kf2
{[%clk 0:00:03.2]} 25... Qxf5+ {[%clk 0:00:18.4]} 26. Kxe1 {[%clk 0:00:03.6]}
26... Re8+ {[%clk 0:00:18.2]} 27. Kd1 {[%clk 0:00:02.5]} 27... Qf3+ {[%clk
0:00:13.6]} 28. Kc2 {[%clk 0:00:02.4]} 28... Qd3# {[%clk 0:00:13.9]} 0-1

[Event "Early-Titled-Tuesday-Blitz-March-19-2024"]
[Site "Chess.com"]
[Date "2024.03.19"]
[Round "2"]
[White "Hope_6"]
[Black "DenLaz"]
[Result "0-1"]
[WhiteElo "2705"]
[BlackElo "3075"]
[TimeControl "180+1"]
[EndTime "8:17:48 PDT"]
[Termination "DenLaz won on time"]

1. e4 {[%clk 0:02:49.8]} 1... c5 {[%clk 0:02:59.7]} 2. Nf3 {[%clk 0:02:49.7]}
2... e6 {[%clk 0:03:00.3]} 3. d4 {[%clk 0:02:50.1]} 3... cxd4 {[%clk 0:03:01.2]}
4. Nxd4 {[%clk 0:02:50.8]} 4... Nc6 {[%clk 0:03:01.8]} 5. Nc3 {[%clk 0:02:51.1]}
5... Qc7 {[%clk 0:03:02]} 6. g4 {[%clk 0:02:49.4]} 6... a6 {[%clk 0:02:59.8]} 7.
Be3 {[%clk 0:02:47.1]} 7... h6 {[%clk 0:02:58.3]} 8. h4 {[%clk 0:02:44.8]} 8...
Nf6 {[%clk 0:02:58]} 9. Rg1 {[%clk 0:02:36.9]} 9... Bb4 {[%clk 0:02:56.9]} 10.
f3 {[%clk 0:02:21.8]} 10... Ne5 {[%clk 0:02:39.6]} 11. Qd2 {[%clk 0:02:12.3]}
11... d5 {[%clk 0:01:57.4]} 12. g5 {[%clk 0:02:07]} 12... hxg5 {[%clk 0:01:57]}
13. hxg5 {[%clk 0:02:07.9]} 13... Nfd7 {[%clk 0:01:57.7]} 14. O-O-O {[%clk
0:01:58.4]} 14... Nb6 {[%clk 0:01:55.1]} 15. a3 {[%clk 0:01:42.5]} 15... Nbc4
{[%clk 0:01:48.4]} 16. Bxc4 {[%clk 0:01:41.4]} 16... Nxc4 {[%clk 0:01:48.1]} 17.
Qe1 {[%clk 0:01:40.3]} 17... Nxe3 {[%clk 0:01:33]} 18. Qxe3 {[%clk 0:01:40.1]}
18... Bxc3 {[%clk 0:01:33.2]} 19. bxc3 {[%clk 0:01:31.2]} 19... dxe4 {[%clk
0:01:20.9]} 20. Qxe4 {[%clk 0:01:28.6]} 20... Qxc3 {[%clk 0:00:41.1]} 21. Nf5
{[%clk 0:01:23.1]} 21... Qa1+ {[%clk 0:00:31.1]} 22. Kd2 {[%clk 0:01:19.9]}
22... Rh2+ {[%clk 0:00:31.8]} 23. Ke1 {[%clk 0:01:03.6]} 23... Qc3+ {[%clk
0:00:29.5]} 24. Kf1 {[%clk 0:01:01.5]} 24... e5 {[%clk 0:00:24.1]} 25. Nd6+
{[%clk 0:00:35.2]} 25... Kf8 {[%clk 0:00:20.3]} 26. Qd3 {[%clk 0:00:07.5]} 26...
Bh3+ {[%clk 0:00:19.4]} 0-1

[Event "Early-Titled-Tuesday-Blitz-March-19-2024"]
[Site "Chess.com"]
[Date "2024.03.19"]
[Round "2"]
[White "Dyadya81"]
[Black "davidkalashian"]
[Result "1-0"]
[WhiteElo "2954"]
[BlackElo "2652"]
[TimeControl "180+1"]
[EndTime "8:17:49 PDT"]
[Termination "Dyadya81 won by resignation"]

1. e4 {[%clk 0:03:00.9]} 1... c6 {[%clk 0:02:54.8]} 2. d3 {[%clk 0:03:00.1]}
2... g6 {[%clk 0:02:55.7]} 3. Nf3 {[%clk 0:02:57.1]} 3... Bg7 {[%clk 0:02:55.2]}
4. Be2 {[%clk 0:02:54.1]} 4... d6 {[%clk 0:02:55.4]} 5. O-O {[%clk 0:02:52.4]}
5... Nf6 {[%clk 0:02:55.3]} 6. c3 {[%clk 0:02:50]} 6... O-O {[%clk 0:02:55.3]}
7. Qc2 {[%clk 0:02:47.5]} 7... Bg4 {[%clk 0:02:53.3]} 8. Be3 {[%clk 0:02:44.4]}
8... c5 {[%clk 0:02:38.6]} 9. Rd1 {[%clk 0:02:39.2]} 9... Nc6 {[%clk 0:02:38.3]}
10. Na3 {[%clk 0:02:33.1]} 10... a6 {[%clk 0:02:34.2]} 11. h3 {[%clk 0:02:30]}
11... Bxf3 {[%clk 0:02:33.5]} 12. Bxf3 {[%clk 0:02:29.9]} 12... Rc8 {[%clk
0:02:31.5]} 13. Qd2 {[%clk 0:02:26.3]} 13... e5 {[%clk 0:02:24.7]} 14. Bg5
{[%clk 0:02:19.5]} 14... b5 {[%clk 0:02:23.3]} 15. Nc2 {[%clk 0:02:16.4]} 15...
Qd7 {[%clk 0:02:02.3]} 16. Ne3 {[%clk 0:02:12.3]} 16... Qb7 {[%clk 0:01:55.1]}
17. a4 {[%clk 0:02:07.8]} 17... Ne7 {[%clk 0:01:45.4]} 18. g3 {[%clk 0:01:59.3]}
18... Rb8 {[%clk 0:01:35.2]} 19. axb5 {[%clk 0:01:56.7]} 19... axb5 {[%clk
0:01:33]} 20. Kg2 {[%clk 0:01:54.2]} 20... Ra8 {[%clk 0:01:32.4]} 21. Rab1
{[%clk 0:01:47.5]} 21... Ra2 {[%clk 0:01:24.8]} 22. h4 {[%clk 0:01:44.3]} 22...
h5 {[%clk 0:01:00.7]} 23. Re1 {[%clk 0:01:34.8]} 23... Nh7 {[%clk 0:00:34.7]}
24. Bxe7 {[%clk 0:01:28]} 24... Qxe7 {[%clk 0:00:35.6]} 25. Bd1 {[%clk
0:01:26.1]} 25... Bh6 {[%clk 0:00:26.3]} 26. Nd5 {[%clk 0:01:16.3]} 26... Bxd2
{[%clk 0:00:25.2]} 27. Nxe7+ {[%clk 0:01:16.6]} 27... Kg7 {[%clk 0:00:24.5]} 28.
Re2 {[%clk 0:01:15.4]} 28... Bh6 {[%clk 0:00:24.5]} 29. Nd5 {[%clk 0:01:12.4]}
29... Nf6 {[%clk 0:00:20.9]} 30. Bb3 {[%clk 0:01:10.6]} 30... Ra7 {[%clk
0:00:20.2]} 31. Rf1 {[%clk 0:01:03.5]} 31... Nxd5 {[%clk 0:00:19.9]} 32. Bxd5
{[%clk 0:01:03]} 32... Rb8 {[%clk 0:00:13.5]} 33. f4 {[%clk 0:01:02.7]} 33...
exf4 {[%clk 0:00:14.4]} 34. gxf4 {[%clk 0:01:02.7]} 34... b4 {[%clk 0:00:15.3]}
35. cxb4 {[%clk 0:00:52.6]} 35... Rxb4 {[%clk 0:00:14.6]} 36. b3 {[%clk
0:00:53.2]} 36... Re7 {[%clk 0:00:12.4]} 37. f5 {[%clk 0:00:50]} 37... gxf5
{[%clk 0:00:10.7]} 38. Rxf5 {[%clk 0:00:49.5]} 38... Kg6 {[%clk 0:00:09.8]} 39.
Ref2 {[%clk 0:00:48.8]} 39... Bg7 {[%clk 0:00:08.8]} 40. Bxf7+ {[%clk
0:00:48.7]} 40... Kh7 {[%clk 0:00:08.6]} 41. Rxh5+ {[%clk 0:00:48.2]} 41... Bh6
{[%clk 0:00:09.5]} 42. Rf6 {[%clk 0:00:47.9]} 1-0

[Event "Early-Titled-Tuesday-Blitz-March-19-2024"]
[Site "Chess.com"]
[Date "2024.03.19"]
[Round "2"]
[White "2KTNGO"]
[Black "carloseduar100"]
[Result "1-0"]
[WhiteElo "2527"]
[BlackElo "2258"]
[TimeControl "180+1"]
[EndTime "8:17:49 PDT"]
[Termination "2KTNGO won on time"]

1. d4 {[%clk 0:03:00.9]} 1... d5 {[%clk 0:02:59.8]} 2. Nf3 {[%clk 0:03:00.4]}
2... c6 {[%clk 0:02:59.4]} 3. e3 {[%clk 0:02:59.3]} 3... Nf6 {[%clk 0:03:00]} 4.
Bd3 {[%clk 0:02:55.1]} 4... Nbd7 {[%clk 0:02:59.6]} 5. b3 {[%clk 0:02:54.2]}
5... e6 {[%clk 0:02:58.6]} 6. Bb2 {[%clk 0:02:53.8]} 6... Bd6 {[%clk 0:02:59.2]}
7. Nbd2 {[%clk 0:02:50.4]} 7... Qe7 {[%clk 0:02:59.6]} 8. e4 {[%clk 0:02:47.7]}
8... e5 {[%clk 0:02:58.9]} 9. dxe5 {[%clk 0:02:46.7]} 9... Nxe5 {[%clk
0:02:58.6]} 10. Nxe5 {[%clk 0:02:43.8]} 10... Bxe5 {[%clk 0:02:58.2]} 11. Bxe5
{[%clk 0:02:42.9]} 11... Qxe5 {[%clk 0:02:58.7]} 12. O-O {[%clk 0:02:41.6]}
12... dxe4 {[%clk 0:02:55.9]} 13. Nxe4 {[%clk 0:02:39.3]} 13... O-O {[%clk
0:02:54.8]} 14. Re1 {[%clk 0:02:35.8]} 14... Nxe4 {[%clk 0:02:38.9]} 15. Rxe4
{[%clk 0:02:31.9]} 15... Qg5 {[%clk 0:02:39.4]} 16. h4 {[%clk 0:02:27.6]} 16...
Qf6 {[%clk 0:02:38.4]} 17. Qe1 {[%clk 0:02:22.6]} 17... Be6 {[%clk 0:02:36.2]}
18. Rd1 {[%clk 0:02:17.5]} 18... Rad8 {[%clk 0:02:35.2]} 19. Qe3 {[%clk
0:02:13.5]} 19... Bd5 {[%clk 0:02:34.9]} 20. Rf4 {[%clk 0:02:07.9]} 20... Qe6
{[%clk 0:02:34.8]} 21. Qxa7 {[%clk 0:01:56.6]} 21... Rd7 {[%clk 0:02:03.6]} 22.
a4 {[%clk 0:01:38.9]} 22... Rfd8 {[%clk 0:02:01.5]} 23. Bf5 {[%clk 0:01:01.2]}
23... Qe2 {[%clk 0:02:00.9]} 24. Rfd4 {[%clk 0:00:57.1]} 24... Re7 {[%clk
0:00:58.6]} 25. c4 {[%clk 0:00:55.8]} 25... g6 {[%clk 0:00:58.3]} 26. Bg4 {[%clk
0:00:54.2]} 26... Qc2 {[%clk 0:00:26.1]} 27. cxd5 {[%clk 0:00:52.3]} 27... Qxb3
{[%clk 0:00:26.3]} 28. dxc6 {[%clk 0:00:48.7]} 28... Rxd4 {[%clk 0:00:26]} 29.
Qxd4 {[%clk 0:00:47.6]} 29... h5 {[%clk 0:00:19.8]} 30. Qd8+ {[%clk 0:00:44.9]}
30... Kh7 {[%clk 0:00:19.8]} 31. Qxe7 {[%clk 0:00:44.5]} 31... hxg4 {[%clk
0:00:20.3]} 32. Rd7 {[%clk 0:00:43.3]} 32... Kh6 {[%clk 0:00:21.2]} 33. Qg5+
{[%clk 0:00:41.9]} 33... Kg7 {[%clk 0:00:20.7]} 34. Qe5+ {[%clk 0:00:39.9]}
34... Kh6 {[%clk 0:00:20.5]} 35. Rd8 {[%clk 0:00:38.2]} 35... f6 {[%clk
0:00:01.2]} 36. Qf4+ {[%clk 0:00:36.9]} 1-0

[Event "Early-Titled-Tuesday-Blitz-March-19-2024"]
[Site "Chess.com"]
[Date "2024.03.19"]
[Round "2"]
[White "adotand"]
[Black "RoelandPruijssers"]
[Result "0-1"]
[WhiteElo "2995"]
[BlackElo "2691"]
[TimeControl "180+1"]
[EndTime "8:17:54 PDT"]
[Termination "RoelandPruijssers won by resignation"]

1. e4 {[%clk 0:03:00.9]} 1... Nf6 {[%clk 0:02:58.2]} 2. e5 {[%clk 0:03:00.2]}
2... Nd5 {[%clk 0:02:58.5]} 3. d4 {[%clk 0:03:00.7]} 3... d6 {[%clk 0:02:58.6]}
4. c4 {[%clk 0:03:01.1]} 4... Nb6 {[%clk 0:02:58.5]} 5. f4 {[%clk 0:03:01.6]}
5... dxe5 {[%clk 0:02:58.2]} 6. fxe5 {[%clk 0:03:01.7]} 6... Nc6 {[%clk
0:02:58.6]} 7. Nf3 {[%clk 0:03:02]} 7... Bg4 {[%clk 0:02:58.5]} 8. Be3 {[%clk
0:03:02.4]} 8... e6 {[%clk 0:02:43.8]} 9. Nc3 {[%clk 0:03:02.7]} 9... Be7 {[%clk
0:02:37.6]} 10. Be2 {[%clk 0:02:55.8]} 10... Bxf3 {[%clk 0:02:35.3]} 11. gxf3
{[%clk 0:02:56.1]} 11... Bh4+ {[%clk 0:02:35.7]} 12. Kf1 {[%clk 0:02:56.6]}
12... O-O {[%clk 0:02:36.4]} 13. Rg1 {[%clk 0:02:53.8]} 13... f6 {[%clk
0:02:31.2]} 14. exf6 {[%clk 0:02:32]} 14... Qxf6 {[%clk 0:01:56.8]} 15. Ne4
{[%clk 0:02:25]} 15... Qf5 {[%clk 0:01:56.8]} 16. Kg2 {[%clk 0:02:25.3]} 16...
Rad8 {[%clk 0:01:54.1]} 17. Kh1 {[%clk 0:02:17]} 17... Nxd4 {[%clk 0:01:46.6]}
18. Bxd4 {[%clk 0:02:06.4]} 18... e5 {[%clk 0:01:46.7]} 19. c5 {[%clk
0:01:48.5]} 19... Rxd4 {[%clk 0:01:41.9]} 20. Qb3+ {[%clk 0:01:48]} 20... Nd5
{[%clk 0:01:42.5]} 21. Rg4 {[%clk 0:01:41.7]} 21... Be7 {[%clk 0:01:32.8]} 22.
Rag1 {[%clk 0:01:39.9]} 22... Rf7 {[%clk 0:01:30.2]} 23. Qxb7 {[%clk 0:01:22.6]}
23... Nf4 {[%clk 0:01:29.6]} 24. Bf1 {[%clk 0:01:03.6]} 24... h5 {[%clk
0:01:29.7]} 25. R4g3 {[%clk 0:01:00.5]} 25... Bh4 {[%clk 0:01:24.2]} 26. Qb3
{[%clk 0:00:44]} 26... Bxg3 {[%clk 0:01:18.9]} 27. Bc4 {[%clk 0:00:43.4]} 27...
Rxc4 {[%clk 0:01:11.1]} 28. Qxc4 {[%clk 0:00:38.1]} 28... Bh4 {[%clk 0:01:08.7]}
29. Rd1 {[%clk 0:00:26.2]} 29... Qh3 {[%clk 0:01:02.5]} 30. Qf1 {[%clk
0:00:20.1]} 30... Qxf1+ {[%clk 0:00:59.9]} 31. Rxf1 {[%clk 0:00:21]} 31... Rd7
{[%clk 0:01:00.5]} 32. Rc1 {[%clk 0:00:18.9]} 32... Rd3 {[%clk 0:00:58.8]} 33.
c6 {[%clk 0:00:18.7]} 33... Rxf3 {[%clk 0:00:57.5]} 34. Nc5 {[%clk 0:00:19.3]}
34... Nd3 {[%clk 0:00:49.7]} 35. Nxd3 {[%clk 0:00:19]} 35... Rxd3 {[%clk
0:00:50.4]} 36. Kg2 {[%clk 0:00:19.7]} 36... e4 {[%clk 0:00:48.8]} 37. Rc4
{[%clk 0:00:20.1]} 37... Rd2+ {[%clk 0:00:43.8]} 38. Kh3 {[%clk 0:00:20]} 38...
Be7 {[%clk 0:00:42.2]} 39. Rxe4 {[%clk 0:00:19.8]} 39... Bd6 {[%clk 0:00:41.9]}
40. Kh4 {[%clk 0:00:20.5]} 40... Rxh2+ {[%clk 0:00:40.1]} 41. Kg5 {[%clk
0:00:21.1]} 41... Rg2+ {[%clk 0:00:40.1]} 42. Kxh5 {[%clk 0:00:20.8]} 42... Rxb2
{[%clk 0:00:36.2]} 43. a4 {[%clk 0:00:21.2]} 43... Rb4 {[%clk 0:00:35.7]} 44.
Re6 {[%clk 0:00:18.5]} 44... Kf7 {[%clk 0:00:35.3]} 45. Re2 {[%clk 0:00:18.8]}
45... Rxa4 {[%clk 0:00:34.3]} 0-1

[Event "Early-Titled-Tuesday-Blitz-March-19-2024"]
[Site "Chess.com"]
[Date "2024.03.19"]
[Round "2"]
[White "GothamChess"]
[Black "shimastream"]
[Result "1-0"]
[WhiteElo "2696"]
[BlackElo "3004"]
[TimeControl "180+1"]
[EndTime "8:17:58 PDT"]
[Termination "GothamChess won on time"]

1. d4 {[%clk 0:03:00.9]} 1... Nf6 {[%clk 0:02:53.7]} 2. Bg5 {[%clk 0:03:01.5]}
2... g6 {[%clk 0:02:38.1]} 3. Bxf6 {[%clk 0:02:59.7]} 3... exf6 {[%clk 0:02:39]}
4. e3 {[%clk 0:02:59.6]} 4... d5 {[%clk 0:02:38.9]} 5. c4 {[%clk 0:02:59.3]}
5... dxc4 {[%clk 0:02:39.3]} 6. Bxc4 {[%clk 0:02:59.2]} 6... Bd6 {[%clk
0:02:40]} 7. Nf3 {[%clk 0:02:57.5]} 7... Nd7 {[%clk 0:02:37.5]} 8. Nc3 {[%clk
0:02:55.5]} 8... f5 {[%clk 0:02:23.7]} 9. O-O {[%clk 0:02:45.2]} 9... O-O {[%clk
0:02:22.6]} 10. Rc1 {[%clk 0:02:40.6]} 10... a6 {[%clk 0:02:18.4]} 11. Re1
{[%clk 0:02:38.6]} 11... Nf6 {[%clk 0:02:15.9]} 12. h3 {[%clk 0:02:36.9]} 12...
Re8 {[%clk 0:02:02.6]} 13. Qb3 {[%clk 0:02:27.1]} 13... Re7 {[%clk 0:01:54.1]}
14. Ng5 {[%clk 0:02:15.7]} 14... Qf8 {[%clk 0:01:46.9]} 15. a4 {[%clk
0:01:51.9]} 15... h6 {[%clk 0:01:43]} 16. Nf3 {[%clk 0:01:48.9]} 16... Qe8
{[%clk 0:01:40.7]} 17. Rc2 {[%clk 0:01:25]} 17... Kg7 {[%clk 0:01:40.1]} 18.
Rcc1 {[%clk 0:01:24]} 18... g5 {[%clk 0:01:30.7]} 19. Nd2 {[%clk 0:01:06.4]}
19... g4 {[%clk 0:00:35.2]} 20. hxg4 {[%clk 0:00:59.7]} 20... fxg4 {[%clk
0:00:35.3]} 21. e4 {[%clk 0:00:49.3]} 21... Bf4 {[%clk 0:00:35.4]} 22. Qd1
{[%clk 0:00:48.9]} 22... Bxd2 {[%clk 0:00:16.9]} 23. Qxd2 {[%clk 0:00:49.2]}
23... Nxe4 {[%clk 0:00:17.5]} 24. Nxe4 {[%clk 0:00:41]} 24... Rxe4 {[%clk
0:00:18.4]} 25. Rxe4 {[%clk 0:00:24.3]} 25... Qxe4 {[%clk 0:00:19.3]} 26. Re1
{[%clk 0:00:24.8]} 26... Qc6 {[%clk 0:00:15.3]} 27. Qc3 {[%clk 0:00:18.3]} 27...
Qf6 {[%clk 0:00:15]} 28. Re8 {[%clk 0:00:14.9]} 28... h5 {[%clk 0:00:05.5]} 29.
Qe3 {[%clk 0:00:12.4]} 29... h4 {[%clk 0:00:05.3]} 30. Bd3 {[%clk 0:00:06.5]}
30... b6 {[%clk 0:00:01.3]} 31. Qe4 {[%clk 0:00:06.9]} 1-0